[Event "Early-Titled-Tuesday-Blitz-January-23-2024"]
[Site "Chess.com"]
[Date "2024.01.23"]
[Round "2"]
[White "giomar27"]
[Black "Harry_Rakkel"]
[Result "1-0"]
[WhiteElo "2391"]
[BlackElo "2654"]
[TimeControl "180+1"]
[EndTime "8:18:25 PST"]
[Termination "giomar27 won on time"]

1. d4 {[%clk 0:03:00.9]} 1... Nf6 {[%clk 0:02:55.9]} 2. Nc3 {[%clk 0:03:00.4]}
2... d5 {[%clk 0:02:54.2]} 3. Bf4 {[%clk 0:03:00.5]} 3... a6 {[%clk 0:02:52.5]}
4. e3 {[%clk 0:03:00.1]} 4... e6 {[%clk 0:02:52.1]} 5. g4 {[%clk 0:02:59.7]}
5... Bb4 {[%clk 0:02:50.8]} 6. Bd3 {[%clk 0:02:55.6]} 6... c5 {[%clk 0:02:43.3]}
7. g5 {[%clk 0:02:47.2]} 7... Ne4 {[%clk 0:02:40.4]} 8. Bxe4 {[%clk 0:02:44.5]}
8... dxe4 {[%clk 0:02:39.4]} 9. dxc5 {[%clk 0:02:44.8]} 9... Bd7 {[%clk
0:02:27.4]} 10. Qd6 {[%clk 0:02:24.3]} 10... Bxc3+ {[%clk 0:02:17.5]} 11. bxc3
{[%clk 0:02:23.3]} 11... Bb5 {[%clk 0:02:08.8]} 12. a4 {[%clk 0:02:05.9]} 12...
Qxd6 {[%clk 0:01:48.2]} 13. Bxd6 {[%clk 0:01:56.4]} 13... Bc6 {[%clk 0:01:46.9]}
14. Ne2 {[%clk 0:01:53.3]} 14... h6 {[%clk 0:01:46]} 15. gxh6 {[%clk 0:01:40.1]}
15... Rxh6 {[%clk 0:01:45.2]} 16. Nd4 {[%clk 0:01:39.8]} 16... Nd7 {[%clk
0:01:43.7]} 17. Ke2 {[%clk 0:01:28.4]} 17... Bd5 {[%clk 0:01:38.5]} 18. Rab1
{[%clk 0:01:15.4]} 18... Rc8 {[%clk 0:01:34.1]} 19. Nb3 {[%clk 0:01:13.5]} 19...
Bxb3 {[%clk 0:01:09.5]} 20. Rxb3 {[%clk 0:00:47]} 20... Nxc5 {[%clk 0:01:09]}
21. Bxc5 {[%clk 0:00:47.3]} 21... Rxc5 {[%clk 0:01:09]} 22. Rxb7 {[%clk
0:00:47.8]} 22... Rxc3 {[%clk 0:01:08.4]} 23. Kd2 {[%clk 0:00:48.2]} 23... Rc6
{[%clk 0:01:07]} 24. Ra7 {[%clk 0:00:43.3]} 24... Rf6 {[%clk 0:00:57]} 25. Rb1
{[%clk 0:00:31.9]} 25... Rc8 {[%clk 0:00:46.7]} 26. Rbb7 {[%clk 0:00:31.5]}
26... Rxf2+ {[%clk 0:00:43.4]} 27. Ke1 {[%clk 0:00:28.6]} 27... Rf3 {[%clk
0:00:42.2]} 28. Kd2 {[%clk 0:00:20.6]} 28... g5 {[%clk 0:00:37.4]} 29. Rxa6
{[%clk 0:00:16.7]} 29... Rf2+ {[%clk 0:00:36.5]} 30. Ke1 {[%clk 0:00:16.4]}
30... Rf3 {[%clk 0:00:29]} 31. Kd2 {[%clk 0:00:16.4]} 31... Rd8+ {[%clk
0:00:23.9]} 32. Ke2 {[%clk 0:00:16.4]} 32... Rh3 {[%clk 0:00:18.5]} 33. Raa7
{[%clk 0:00:08.9]} 33... Rxh2+ {[%clk 0:00:18.6]} 34. Ke1 {[%clk 0:00:09.5]}
34... Rh7 {[%clk 0:00:18.9]} 35. a5 {[%clk 0:00:04.8]} 35... g4 {[%clk 0:00:19]}
36. Re7+ {[%clk 0:00:03.2]} 36... Kf8 {[%clk 0:00:18.3]} 37. Red7 {[%clk
0:00:03.8]} 37... Rc8 {[%clk 0:00:13.4]} 38. Rac7 {[%clk 0:00:03.5]} 38... Ra8
{[%clk 0:00:10.1]} 39. Ra7 {[%clk 0:00:03.8]} 39... Rxa7 {[%clk 0:00:10.2]} 40.
Rxa7 {[%clk 0:00:04.7]} 40... Rh3 {[%clk 0:00:07.8]} 41. Kf2 {[%clk 0:00:03.6]}
41... Rf3+ {[%clk 0:00:06.9]} 42. Kg2 {[%clk 0:00:01.4]} 42... Rxe3 {[%clk
0:00:07.2]} 43. a6 {[%clk 0:00:02]} 43... Kg7 {[%clk 0:00:05]} 44. Ra8 {[%clk
0:00:02.9]} 44... Rc3 {[%clk 0:00:03.1]} 45. a7 {[%clk 0:00:02.7]} 45... Rxc2+
{[%clk 0:00:03.5]} 46. Kg3 {[%clk 0:00:03.3]} 46... Ra2 {[%clk 0:00:04.4]} 47.
Kxg4 {[%clk 0:00:03.9]} 47... Kf6 {[%clk 0:00:04.2]} 48. Kf4 {[%clk 0:00:04.6]}
48... Ra4 {[%clk 0:00:04.5]} 49. Ke3 {[%clk 0:00:04.4]} 49... e5 {[%clk
0:00:04.5]} 50. Ke2 {[%clk 0:00:02.8]} 50... Ra3 {[%clk 0:00:04.1]} 51. Kf2
{[%clk 0:00:02.7]} 51... Ra5 {[%clk 0:00:02.3]} 52. Ke3 {[%clk 0:00:02.8]} 52...
Ra4 {[%clk 0:00:02.6]} 53. Kf2 {[%clk 0:00:02.6]} 53... Ra3 {[%clk 0:00:01.8]}
54. Ke2 {[%clk 0:00:03.1]} 54... e3 {[%clk 0:00:02.1]} 55. Kf3 {[%clk
0:00:03.1]} 1-0

[Event "Early-Titled-Tuesday-Blitz-January-23-2024"]
[Site "Chess.com"]
[Date "2024.01.23"]
[Round "2"]
[White "margarita_2703"]
[Black "karinachess1"]
[Result "0-1"]
[WhiteElo "2284"]
[BlackElo "2608"]
[TimeControl "180+1"]
[EndTime "8:18:29 PST"]
[Termination "karinachess1 won on time"]

1. e4 {[%clk 0:03:00.9]} 1... e5 {[%clk 0:03:00]} 2. Nf3 {[%clk 0:02:55.7]} 2...
Nc6 {[%clk 0:03:00]} 3. Bc4 {[%clk 0:02:56.3]} 3... Nf6 {[%clk 0:02:59.9]} 4.
O-O {[%clk 0:02:54.1]} 4... Nxe4 {[%clk 0:02:53.1]} 5. Nc3 {[%clk 0:02:54.2]}
5... Nd6 {[%clk 0:02:51.8]} 6. Bd5 {[%clk 0:02:52.6]} 6... Be7 {[%clk
0:02:51.8]} 7. Re1 {[%clk 0:02:47.6]} 7... O-O {[%clk 0:02:46.5]} 8. Nxe5 {[%clk
0:02:43.7]} 8... Nxe5 {[%clk 0:02:46.4]} 9. Rxe5 {[%clk 0:02:44.6]} 9... Ne8
{[%clk 0:02:44.1]} 10. d4 {[%clk 0:02:41.4]} 10... c6 {[%clk 0:02:43.5]} 11. Bc4
{[%clk 0:02:38]} 11... d5 {[%clk 0:02:42.5]} 12. Bd3 {[%clk 0:02:27.7]} 12...
Bf6 {[%clk 0:02:41.8]} 13. Re1 {[%clk 0:02:26.8]} 13... Nd6 {[%clk 0:02:34.2]}
14. Ne2 {[%clk 0:02:26.5]} 14... Bg4 {[%clk 0:02:25.3]} 15. c3 {[%clk
0:02:23.9]} 15... Re8 {[%clk 0:02:21.8]} 16. f3 {[%clk 0:02:23.6]} 16... Bf5
{[%clk 0:02:17.8]} 17. Bf4 {[%clk 0:02:19.7]} 17... Bxd3 {[%clk 0:01:57]} 18.
Qxd3 {[%clk 0:02:20.6]} 18... Nc4 {[%clk 0:01:54.3]} 19. b3 {[%clk 0:02:09.5]}
19... Nd6 {[%clk 0:01:54.1]} 20. Ng3 {[%clk 0:02:07.7]} 20... Qd7 {[%clk
0:01:46.1]} 21. Kf2 {[%clk 0:01:59.7]} 21... a5 {[%clk 0:01:42.2]} 22. Bxd6
{[%clk 0:01:52.1]} 22... Qxd6 {[%clk 0:01:41.2]} 23. Nf5 {[%clk 0:01:53]} 23...
Qa3 {[%clk 0:01:16.7]} 24. Qd2 {[%clk 0:01:36.2]} 24... h6 {[%clk 0:00:56.1]}
25. g3 {[%clk 0:01:33.1]} 25... Re6 {[%clk 0:00:50.4]} 26. h4 {[%clk 0:01:22.4]}
26... Rae8 {[%clk 0:00:49.7]} 27. h5 {[%clk 0:01:15.6]} 27... c5 {[%clk
0:00:26]} 28. Rxe6 {[%clk 0:01:01]} 28... fxe6 {[%clk 0:00:24.3]} 29. Ne3 {[%clk
0:00:58.2]} 29... Rc8 {[%clk 0:00:24]} 30. Nc2 {[%clk 0:00:56.5]} 30... Qb2
{[%clk 0:00:23.5]} 31. Qe2 {[%clk 0:00:27.7]} 31... Rc6 {[%clk 0:00:17.4]} 32.
Rd1 {[%clk 0:00:17.3]} 32... Qxc3 {[%clk 0:00:15.7]} 33. Rd3 {[%clk 0:00:11.7]}
33... Qb2 {[%clk 0:00:16]} 34. dxc5 {[%clk 0:00:09.4]} 34... Kf7 {[%clk
0:00:15.9]} 35. Re3 {[%clk 0:00:04.9]} 35... Rxc5 {[%clk 0:00:16.2]} 36. Ne1
{[%clk 0:00:04]} 36... Qxe2+ {[%clk 0:00:12.1]} 37. Rxe2 {[%clk 0:00:04.9]}
37... Bd4+ {[%clk 0:00:11.9]} 38. Kg2 {[%clk 0:00:05.5]} 38... Rc1 {[%clk
0:00:11.8]} 39. Nc2 {[%clk 0:00:05.8]} 39... Bc5 {[%clk 0:00:09.2]} 40. f4
{[%clk 0:00:05.3]} 40... Kf6 {[%clk 0:00:09.4]} 41. Kf3 {[%clk 0:00:05.4]} 41...
b5 {[%clk 0:00:09.8]} 42. Kg4 {[%clk 0:00:05.8]} 42... a4 {[%clk 0:00:10.1]} 43.
bxa4 {[%clk 0:00:05.8]} 43... bxa4 {[%clk 0:00:11]} 44. Ne3 {[%clk 0:00:05.3]}
44... Rc3 {[%clk 0:00:08.9]} 45. Ng2 {[%clk 0:00:05.4]} 45... a3 {[%clk
0:00:08.6]} 46. Nh4 {[%clk 0:00:05.3]} 46... Rc1 {[%clk 0:00:08.4]} 47. f5
{[%clk 0:00:05.3]} 47... e5 {[%clk 0:00:06.8]} 48. Ng6 {[%clk 0:00:04.5]} 48...
Bd4 {[%clk 0:00:07.3]} 49. Nh4 {[%clk 0:00:03.6]} 49... Rb1 {[%clk 0:00:06.8]}
50. Kh3 {[%clk 0:00:03.9]} 50... Rb2 {[%clk 0:00:07.2]} 51. Re1 {[%clk 0:00:04]}
51... Rxa2 {[%clk 0:00:07.5]} 52. Nf3 {[%clk 0:00:03.7]} 52... Rb2 {[%clk
0:00:07.7]} 53. Rc1 {[%clk 0:00:03]} 53... a2 {[%clk 0:00:07.3]} 54. Kg4 {[%clk
0:00:03.6]} 54... Rb1 {[%clk 0:00:06.9]} 55. Rc6+ {[%clk 0:00:04.5]} 55... Ke7
{[%clk 0:00:07.4]} 56. Re6+ {[%clk 0:00:03.7]} 56... Kd7 {[%clk 0:00:07.4]} 0-1

[Event "Early-Titled-Tuesday-Blitz-January-23-2024"]
[Site "Chess.com"]
[Date "2024.01.23"]
[Round "2"]
[White "Alonmindlin"]
[Black "PenguinPacks"]
[Result "0-1"]
[WhiteElo "2697"]
[BlackElo "2425"]
[TimeControl "180+1"]
[EndTime "8:18:30 PST"]
[Termination "PenguinPacks won by resignation"]

1. d4 {[%clk 0:03:00.9]} 1... Nf6 {[%clk 0:02:59.6]} 2. c4 {[%clk 0:03:00.9]}
2... e6 {[%clk 0:02:59.2]} 3. Nf3 {[%clk 0:03:00.3]} 3... Bb4+ {[%clk
0:02:59.5]} 4. Nbd2 {[%clk 0:03:00.4]} 4... Qe7 {[%clk 0:02:59.2]} 5. g3 {[%clk
0:02:58.2]} 5... d6 {[%clk 0:02:59.5]} 6. Bg2 {[%clk 0:02:58.5]} 6... O-O {[%clk
0:02:59.7]} 7. O-O {[%clk 0:02:58.6]} 7... e5 {[%clk 0:02:58.3]} 8. Nb3 {[%clk
0:02:50.4]} 8... exd4 {[%clk 0:02:29.7]} 9. Nfxd4 {[%clk 0:02:49.3]} 9... Nbd7
{[%clk 0:02:25.1]} 10. Nb5 {[%clk 0:02:36.5]} 10... c6 {[%clk 0:02:08.8]} 11.
N5d4 {[%clk 0:02:27.6]} 11... Ne5 {[%clk 0:02:08.7]} 12. Qc2 {[%clk 0:02:24.5]}
12... a5 {[%clk 0:02:06.1]} 13. a3 {[%clk 0:02:22.7]} 13... Bc5 {[%clk
0:01:48.1]} 14. Nxc5 {[%clk 0:02:20.7]} 14... dxc5 {[%clk 0:01:49]} 15. Nf3
{[%clk 0:02:18.9]} 15... a4 {[%clk 0:01:39.6]} 16. Nxe5 {[%clk 0:02:06]} 16...
Qxe5 {[%clk 0:01:39.2]} 17. Bf4 {[%clk 0:02:06.9]} 17... Qh5 {[%clk 0:01:38.8]}
18. h4 {[%clk 0:02:05.8]} 18... Re8 {[%clk 0:01:35.2]} 19. e3 {[%clk 0:02:04.4]}
19... Bf5 {[%clk 0:01:31.2]} 20. Qd1 {[%clk 0:01:59]} 20... Qg6 {[%clk
0:01:24.7]} 21. Qd6 {[%clk 0:01:48.4]} 21... Ne4 {[%clk 0:01:20]} 22. Qxg6
{[%clk 0:01:48]} 22... hxg6 {[%clk 0:01:19.4]} 23. g4 {[%clk 0:01:47.4]} 23...
Bc8 {[%clk 0:00:55.2]} 24. Rad1 {[%clk 0:01:47.1]} 24... f5 {[%clk 0:00:43.2]}
25. f3 {[%clk 0:01:32.3]} 25... Nf6 {[%clk 0:00:41.7]} 26. g5 {[%clk 0:01:32.6]}
26... Nd7 {[%clk 0:00:41.7]} 27. Rd6 {[%clk 0:01:32.7]} 27... Kf7 {[%clk
0:00:34]} 28. Rfd1 {[%clk 0:01:25]} 28... Nb6 {[%clk 0:00:33.7]} 29. h5 {[%clk
0:01:15.3]} 29... Be6 {[%clk 0:00:31.4]} 30. Bf1 {[%clk 0:01:07.3]} 30... gxh5
{[%clk 0:00:28.8]} 31. Be5 {[%clk 0:01:03.7]} 31... Re7 {[%clk 0:00:22.4]} 32.
Bc3 {[%clk 0:01:03]} 32... Bxc4 {[%clk 0:00:17.1]} 33. g6+ {[%clk 0:01:02.2]}
33... Ke8 {[%clk 0:00:17.7]} 34. Bh3 {[%clk 0:00:55.1]} 34... Re6 {[%clk
0:00:13]} 35. Bxg7 {[%clk 0:00:51.3]} 35... Ke7 {[%clk 0:00:11.7]} 36. Rxe6+
{[%clk 0:00:45.4]} 36... Bxe6 {[%clk 0:00:12.6]} 37. Bc3 {[%clk 0:00:40.8]}
37... Nd5 {[%clk 0:00:12.9]} 38. Be5 {[%clk 0:00:40.6]} 38... Nxe3 {[%clk
0:00:10.4]} 39. Re1 {[%clk 0:00:37.1]} 39... Nd5 {[%clk 0:00:07.3]} 40. Kf2
{[%clk 0:00:35.6]} 40... Rg8 {[%clk 0:00:07.2]} 41. g7 {[%clk 0:00:35.6]} 41...
Kf7 {[%clk 0:00:07.1]} 42. f4 {[%clk 0:00:31.1]} 42... Ne7 {[%clk 0:00:07.6]}
43. Bg2 {[%clk 0:00:28.9]} 43... Ng6 {[%clk 0:00:07.6]} 44. Bc3 {[%clk
0:00:28.9]} 44... Nxf4 {[%clk 0:00:08]} 45. Bf1 {[%clk 0:00:28]} 45... Nd5
{[%clk 0:00:08.4]} 46. Be5 {[%clk 0:00:27.8]} 46... Nf6 {[%clk 0:00:08.9]} 47.
Bxf6 {[%clk 0:00:17.8]} 47... Kxf6 {[%clk 0:00:09.8]} 48. Rxe6+ {[%clk
0:00:17.9]} 48... Kxe6 {[%clk 0:00:07.8]} 49. Bc4+ {[%clk 0:00:18.8]} 49... Kf6
{[%clk 0:00:08.6]} 50. Bxg8 {[%clk 0:00:19.4]} 50... Kxg7 {[%clk 0:00:09.2]} 51.
Kf3 {[%clk 0:00:19.7]} 51... Kf6 {[%clk 0:00:09.4]} 52. Kf4 {[%clk 0:00:20.2]}
52... h4 {[%clk 0:00:10.1]} 53. Bc4 {[%clk 0:00:20.6]} 53... b5 {[%clk
0:00:10.5]} 54. Bd3 {[%clk 0:00:20.8]} 54... c4 {[%clk 0:00:10.9]} 55. Bxf5
{[%clk 0:00:20.8]} 55... c5 {[%clk 0:00:11.6]} 56. Bd7 {[%clk 0:00:20.6]} 56...
b4 {[%clk 0:00:12]} 57. Bxa4 {[%clk 0:00:20]} 57... c3 {[%clk 0:00:12.7]} 58.
bxc3 {[%clk 0:00:19.8]} 58... bxa3 {[%clk 0:00:13.4]} 59. Bb3 {[%clk 0:00:20.2]}
59... h3 {[%clk 0:00:13.8]} 60. Kg3 {[%clk 0:00:20.4]} 60... Ke5 {[%clk
0:00:14.6]} 61. Kxh3 {[%clk 0:00:20.8]} 61... Ke4 {[%clk 0:00:15.3]} 62. Kg3
{[%clk 0:00:16.7]} 62... Kd3 {[%clk 0:00:15.7]} 63. Kf3 {[%clk 0:00:16.4]} 63...
Kxc3 {[%clk 0:00:16]} 64. Ba2 {[%clk 0:00:16.6]} 64... Kb2 {[%clk 0:00:16.3]}
65. Bc4 {[%clk 0:00:14.3]} 65... a2 {[%clk 0:00:15.9]} 66. Bxa2 {[%clk
0:00:13.7]} 66... Kxa2 {[%clk 0:00:16.8]} 67. Ke2 {[%clk 0:00:14.4]} 67... Kb3
{[%clk 0:00:17.7]} 68. Kd2 {[%clk 0:00:15.3]} 68... c4 {[%clk 0:00:16.7]} 69.
Kc1 {[%clk 0:00:16.2]} 69... Kc3 {[%clk 0:00:17.2]} 70. Kb1 {[%clk 0:00:16.7]}
70... Kd2 {[%clk 0:00:17.7]} 0-1

[Event "Early-Titled-Tuesday-Blitz-January-23-2024"]
[Site "Chess.com"]
[Date "2024.01.23"]
[Round "2"]
[White "Chessdude1987"]
[Black "mortngabriel"]
[Result "0-1"]
[WhiteElo "2281"]
[BlackElo "2518"]
[TimeControl "180+1"]
[EndTime "8:18:34 PST"]
[Termination "mortngabriel won by checkmate"]

1. e4 {[%clk 0:03:00.9]} 1... e5 {[%clk 0:02:58.7]} 2. Nf3 {[%clk 0:03:00.6]}
2... Nc6 {[%clk 0:02:58.7]} 3. d4 {[%clk 0:03:00.2]} 3... exd4 {[%clk
0:02:58.8]} 4. Nxd4 {[%clk 0:03:01]} 4... Nf6 {[%clk 0:02:58.7]} 5. Nc3 {[%clk
0:03:01.5]} 5... Bb4 {[%clk 0:02:58.2]} 6. Nxc6 {[%clk 0:03:02]} 6... bxc6
{[%clk 0:02:59.1]} 7. Bd3 {[%clk 0:03:02.3]} 7... d5 {[%clk 0:02:59.2]} 8. exd5
{[%clk 0:03:03.2]} 8... cxd5 {[%clk 0:02:59.8]} 9. O-O {[%clk 0:03:03.2]} 9...
O-O {[%clk 0:02:59.7]} 10. h3 {[%clk 0:03:03.4]} 10... c6 {[%clk 0:02:57.8]} 11.
Qf3 {[%clk 0:03:03.7]} 11... Re8 {[%clk 0:02:56.6]} 12. Bf4 {[%clk 0:02:57.3]}
12... Be6 {[%clk 0:02:38]} 13. Ne2 {[%clk 0:02:51.1]} 13... Bd6 {[%clk
0:02:27.3]} 14. Ng3 {[%clk 0:02:49.7]} 14... Bxf4 {[%clk 0:02:18.7]} 15. Qxf4
{[%clk 0:02:49.9]} 15... Qb8 {[%clk 0:02:19.1]} 16. Qg5 {[%clk 0:02:42.4]} 16...
Qxb2 {[%clk 0:02:08.4]} 17. Rab1 {[%clk 0:02:40.9]} 17... Qd4 {[%clk 0:01:49.7]}
18. Rfd1 {[%clk 0:02:39.9]} 18... h6 {[%clk 0:01:32.7]} 19. Qd2 {[%clk
0:02:22.1]} 19... Qh4 {[%clk 0:01:32.4]} 20. Rb4 {[%clk 0:02:19]} 20... Qg5
{[%clk 0:01:23.7]} 21. Qc3 {[%clk 0:01:55]} 21... Bd7 {[%clk 0:01:09.1]} 22. Qc5
{[%clk 0:01:29.3]} 22... Qe5 {[%clk 0:00:54.5]} 23. Rb7 {[%clk 0:01:22.5]} 23...
Qe7 {[%clk 0:00:52]} 24. Qa5 {[%clk 0:01:18]} 24... Qd6 {[%clk 0:00:45]} 25. c4
{[%clk 0:01:13.1]} 25... Reb8 {[%clk 0:00:36]} 26. c5 {[%clk 0:01:07.6]} 26...
Qf8 {[%clk 0:00:26.2]} 27. Rc7 {[%clk 0:00:59.1]} 27... Qd8 {[%clk 0:00:23.7]}
28. Nf5 {[%clk 0:00:42.2]} 28... Ne8 {[%clk 0:00:20.2]} 29. Qc3 {[%clk
0:00:38.1]} 29... Qxc7 {[%clk 0:00:14.1]} 30. Re1 {[%clk 0:00:33.5]} 30... Bxf5
{[%clk 0:00:13.6]} 31. Bxf5 {[%clk 0:00:32]} 31... Nf6 {[%clk 0:00:13.9]} 32.
Qf3 {[%clk 0:00:30.6]} 32... Re8 {[%clk 0:00:13.4]} 33. Rd1 {[%clk 0:00:30.6]}
33... Rad8 {[%clk 0:00:12.6]} 34. g3 {[%clk 0:00:30]} 34... Qe5 {[%clk
0:00:12.7]} 35. Kg2 {[%clk 0:00:29.7]} 35... g6 {[%clk 0:00:11.5]} 36. Bb1
{[%clk 0:00:29.2]} 36... Ne4 {[%clk 0:00:11.7]} 37. h4 {[%clk 0:00:28.9]} 37...
h5 {[%clk 0:00:11.6]} 38. Rd3 {[%clk 0:00:28.3]} 38... Qf5 {[%clk 0:00:11.4]}
39. Qe3 {[%clk 0:00:27.2]} 39... Qxf2+ {[%clk 0:00:10.8]} 40. Qxf2 {[%clk
0:00:27]} 40... Nxf2 {[%clk 0:00:11.7]} 41. Kxf2 {[%clk 0:00:27.6]} 41... Rb8
{[%clk 0:00:11.7]} 42. Bc2 {[%clk 0:00:27.2]} 42... Rb2 {[%clk 0:00:10.9]} 43.
Rd2 {[%clk 0:00:27.3]} 43... Reb8 {[%clk 0:00:10.6]} 44. Kf3 {[%clk 0:00:26.5]}
44... Re8 {[%clk 0:00:10.5]} 45. a4 {[%clk 0:00:24.6]} 45... a5 {[%clk
0:00:09.9]} 46. Kf2 {[%clk 0:00:23.3]} 46... Kg7 {[%clk 0:00:10.3]} 47. Kf3
{[%clk 0:00:23.5]} 47... Kf6 {[%clk 0:00:11]} 48. Kf2 {[%clk 0:00:23.8]} 48...
Re5 {[%clk 0:00:11.2]} 49. Kf3 {[%clk 0:00:23.7]} 49... d4 {[%clk 0:00:08.4]}
50. Rg2 {[%clk 0:00:20.4]} 50... Rxc5 {[%clk 0:00:06.5]} 51. Be4 {[%clk
0:00:16]} 51... Rxg2 {[%clk 0:00:07.4]} 52. Kxg2 {[%clk 0:00:16.4]} 52... Rc3
{[%clk 0:00:06.4]} 53. Kf2 {[%clk 0:00:14.4]} 53... Ke5 {[%clk 0:00:06.6]} 54.
Bg2 {[%clk 0:00:13.9]} 54... Ra3 {[%clk 0:00:06.4]} 55. Bh1 {[%clk 0:00:13.5]}
55... c5 {[%clk 0:00:06.5]} 56. Bc6 {[%clk 0:00:13.6]} 56... c4 {[%clk
0:00:05.9]} 57. Bb5 {[%clk 0:00:13.8]} 57... Ra2+ {[%clk 0:00:06]} 58. Ke1
{[%clk 0:00:13.6]} 58... Rc2 {[%clk 0:00:06.4]} 59. Kd1 {[%clk 0:00:13.1]} 59...
d3 {[%clk 0:00:07.1]} 60. Bxc4 {[%clk 0:00:12.3]} 60... Rxc4 {[%clk 0:00:06.9]}
61. Kd2 {[%clk 0:00:12.8]} 61... Rxa4 {[%clk 0:00:07.8]} 62. Kxd3 {[%clk
0:00:13.1]} 62... Ra3+ {[%clk 0:00:08.4]} 63. Kc2 {[%clk 0:00:13.3]} 63... Rxg3
{[%clk 0:00:09.3]} 64. Kb2 {[%clk 0:00:13.4]} 64... Rg4 {[%clk 0:00:10.2]} 65.
Kc3 {[%clk 0:00:13.7]} 65... Rxh4 {[%clk 0:00:11.1]} 66. Kd3 {[%clk 0:00:14.1]}
66... Rd4+ {[%clk 0:00:11.7]} 67. Ke3 {[%clk 0:00:14]} 67... a4 {[%clk
0:00:12.3]} 68. Kf2 {[%clk 0:00:14.9]} 68... a3 {[%clk 0:00:12.8]} 69. Ke2
{[%clk 0:00:15.8]} 69... a2 {[%clk 0:00:13.4]} 70. Kf2 {[%clk 0:00:16.7]} 70...
a1=Q {[%clk 0:00:13.7]} 71. Kg2 {[%clk 0:00:17.6]} 71... Qa3 {[%clk 0:00:13.5]}
72. Kf2 {[%clk 0:00:18.2]} 72... Rb4 {[%clk 0:00:14.1]} 73. Kg2 {[%clk
0:00:19.1]} 73... Rb2+ {[%clk 0:00:14.9]} 74. Kg1 {[%clk 0:00:19.3]} 74... Qa1#
{[%clk 0:00:15.8]} 0-1

[Event "Early-Titled-Tuesday-Blitz-January-23-2024"]
[Site "Chess.com"]
[Date "2024.01.23"]
[Round "2"]
[White "GlavkonVVS"]
[Black "SpongeBob_03"]
[Result "1/2-1/2"]
[WhiteElo "2479"]
[BlackElo "2206"]
[TimeControl "180+1"]
[EndTime "8:18:35 PST"]
[Termination "Game drawn by repetition"]

1. c4 {[%clk 0:02:54.5]} 1... e6 {[%clk 0:02:58.7]} 2. g3 {[%clk 0:02:53.6]}
2... Nf6 {[%clk 0:02:56.6]} 3. Bg2 {[%clk 0:02:53.4]} 3... Be7 {[%clk
0:02:56.1]} 4. Nf3 {[%clk 0:02:53.7]} 4... O-O {[%clk 0:02:55.9]} 5. O-O {[%clk
0:02:53.9]} 5... c5 {[%clk 0:02:53.8]} 6. e3 {[%clk 0:02:52.6]} 6... b6 {[%clk
0:02:52.6]} 7. d4 {[%clk 0:02:50.6]} 7... Bb7 {[%clk 0:02:37.6]} 8. d5 {[%clk
0:02:48.5]} 8... exd5 {[%clk 0:02:37.2]} 9. Nh4 {[%clk 0:02:48.4]} 9... d6
{[%clk 0:02:18.1]} 10. cxd5 {[%clk 0:02:37.3]} 10... Qd7 {[%clk 0:02:06.9]} 11.
Nc3 {[%clk 0:02:37.1]} 11... b5 {[%clk 0:02:02.1]} 12. e4 {[%clk 0:02:31.2]}
12... g6 {[%clk 0:01:53.7]} 13. f4 {[%clk 0:02:23.1]} 13... b4 {[%clk
0:01:50.8]} 14. Ne2 {[%clk 0:02:18.9]} 14... Rd8 {[%clk 0:01:47.9]} 15. f5
{[%clk 0:02:06.8]} 15... Ne8 {[%clk 0:01:38.1]} 16. Nf3 {[%clk 0:02:02.8]} 16...
Ng7 {[%clk 0:01:37.1]} 17. g4 {[%clk 0:02:00.3]} 17... Na6 {[%clk 0:01:28.3]}
18. b3 {[%clk 0:01:57.9]} 18... Bf6 {[%clk 0:01:27.2]} 19. Bg5 {[%clk
0:01:49.3]} 19... Bxg5 {[%clk 0:01:10.3]} 20. Nxg5 {[%clk 0:01:49.1]} 20... Qe7
{[%clk 0:01:10.7]} 21. Qd2 {[%clk 0:01:32]} 21... h6 {[%clk 0:01:05.8]} 22. f6
{[%clk 0:01:18.9]} 22... Qe5 {[%clk 0:01:05.5]} 23. Nxf7 {[%clk 0:01:15.1]}
23... Kxf7 {[%clk 0:01:05.8]} 24. fxg7+ {[%clk 0:01:15.2]} 24... Kxg7 {[%clk
0:01:06.3]} 25. Nf4 {[%clk 0:01:08.4]} 25... Bc8 {[%clk 0:01:06.4]} 26. Rae1
{[%clk 0:01:01.3]} 26... Bxg4 {[%clk 0:01:02.8]} 27. Ne6+ {[%clk 0:01:00.1]}
27... Bxe6 {[%clk 0:01:02.6]} 28. dxe6 {[%clk 0:01:00.6]} 28... Qxe6 {[%clk
0:00:56.7]} 29. e5 {[%clk 0:01:00.8]} 29... dxe5 {[%clk 0:00:55.7]} 30. Qe2
{[%clk 0:01:01]} 30... Rac8 {[%clk 0:00:51.7]} 31. Qxe5+ {[%clk 0:00:57]} 31...
Qxe5 {[%clk 0:00:52.6]} 32. Rxe5 {[%clk 0:00:57.5]} 32... Rc7 {[%clk 0:00:52.3]}
33. Bd5 {[%clk 0:00:53.6]} 33... Nb8 {[%clk 0:00:46.8]} 34. Bc4 {[%clk
0:00:53.4]} 34... Nc6 {[%clk 0:00:35.8]} 35. Rxc5 {[%clk 0:00:53]} 35... Rdd7
{[%clk 0:00:20.6]} 36. Be6 {[%clk 0:00:49.6]} 36... Nb8 {[%clk 0:00:19.7]} 37.
Rb5 {[%clk 0:00:47.8]} 37... Re7 {[%clk 0:00:20]} 38. Bc4 {[%clk 0:00:45.8]}
38... Nc6 {[%clk 0:00:17.3]} 39. Rc5 {[%clk 0:00:46]} 39... Nd4 {[%clk
0:00:17.4]} 40. Rxc7 {[%clk 0:00:45]} 40... Rxc7 {[%clk 0:00:18.3]} 41. Rd1
{[%clk 0:00:45.2]} 41... Nf3+ {[%clk 0:00:17.9]} 42. Kg2 {[%clk 0:00:45.2]}
42... Ne5 {[%clk 0:00:18.8]} 43. Rd4 {[%clk 0:00:42.7]} 43... Nxc4 {[%clk
0:00:17.2]} 44. bxc4 {[%clk 0:00:43]} 44... a5 {[%clk 0:00:17.5]} 45. Kf3 {[%clk
0:00:43.4]} 45... a4 {[%clk 0:00:17.9]} 46. Ke3 {[%clk 0:00:43.4]} 46... b3
{[%clk 0:00:18.5]} 47. axb3 {[%clk 0:00:43.6]} 47... axb3 {[%clk 0:00:19.4]} 48.
Kd3 {[%clk 0:00:43.9]} 48... b2 {[%clk 0:00:19.8]} 49. Kc2 {[%clk 0:00:43.9]}
49... Rb7 {[%clk 0:00:20.2]} 50. Kb1 {[%clk 0:00:44.2]} 50... Kf6 {[%clk
0:00:19.8]} 51. c5 {[%clk 0:00:43.7]} 51... Ke5 {[%clk 0:00:19.8]} 52. Rd2
{[%clk 0:00:43.9]} 52... Rc7 {[%clk 0:00:19]} 53. Kxb2 {[%clk 0:00:40.3]} 53...
Rxc5 {[%clk 0:00:18.5]} 54. h4 {[%clk 0:00:37.7]} 54... Kf4 {[%clk 0:00:18.4]}
55. Rd6 {[%clk 0:00:37.1]} 55... Rh5 {[%clk 0:00:13.3]} 56. Rxg6 {[%clk
0:00:36.6]} 56... Rxh4 {[%clk 0:00:14.2]} 57. Kc3 {[%clk 0:00:36.9]} 57... h5
{[%clk 0:00:14.6]} 58. Kd3 {[%clk 0:00:37.1]} 58... Rh2 {[%clk 0:00:15]} 59. Rg8
{[%clk 0:00:35.9]} 59... h4 {[%clk 0:00:15.5]} 60. Rg7 {[%clk 0:00:35.5]} 60...
h3 {[%clk 0:00:16]} 61. Rf7+ {[%clk 0:00:35.4]} 61... Kg3 {[%clk 0:00:15.5]} 62.
Rg7+ {[%clk 0:00:35.7]} 62... Kf2 {[%clk 0:00:15.3]} 63. Rf7+ {[%clk 0:00:36.1]}
63... Kg2 {[%clk 0:00:15.9]} 64. Rg7+ {[%clk 0:00:36.5]} 64... Kh1 {[%clk
0:00:16.8]} 65. Ke3 {[%clk 0:00:36.3]} 65... Rg2 {[%clk 0:00:17.2]} 66. Rh7
{[%clk 0:00:35.9]} 66... h2 {[%clk 0:00:17.7]} 67. Rb7 {[%clk 0:00:28.2]} 67...
Rg1 {[%clk 0:00:17.7]} 68. Kf2 {[%clk 0:00:28]} 68... Rg2+ {[%clk 0:00:17.9]}
69. Kf1 {[%clk 0:00:28.1]} 69... Rg1+ {[%clk 0:00:18.2]} 70. Kf2 {[%clk
0:00:28.5]} 70... Rg2+ {[%clk 0:00:18.6]} 71. Kf1 {[%clk 0:00:28.8]} 71... Rg1+
{[%clk 0:00:19.1]} 72. Kf2 {[%clk 0:00:29.2]} 1/2-1/2